Cogmind - Beta 17.1 @@@ ROGUE MODE // 2026.09.12 @ 21:32:25 Player: CavedCold Result: Destroyed by S-10 Pest with Light Assault Rifle Performance ------------- Evolutions (1) 500 Regions Visited (3) 600 Robots Destroyed (16) 80 Value Destroyed (295) 295 Prototype IDs (0) 0 Alien Tech Used (0) 0 Bonus (-68) -68 TOTAL SCORE: 1407 Bonus ------- Friendly Fire -68 Cogmind --------- Core Integrity 0/400 Matter 300/300 Energy 99/100 System Corruption 0% Temperature Cool (0) Movement Core (50) Location -9/Mines Parts ------- > --- POWER (1) -------- (None) > --- PROPULSION (3) --- (None) > --- UTILITY (2) ------ (None) > --- WEAPON (3) ------- (None) > --- INVENTORY (5) ---- Armored Wheel Peak State ------------ > --- POWER ------------ Light Ion Engine > --- PROPULSION ------- Aluminum Leg Aluminum Leg > --- UTILITY ---------- Advanced Weight Redist. System Terrain Scanner > --- WEAPON ----------- Heavy Particle Cannon Autogun Rocket Launcher > --- INVENTORY -------- Ion Engine Medium Laser Medium Laser Mining Laser [Rating: 14] Favorites ----------- Power Ion Engine Engine Ion Engine Propulsion Aluminum Leg Leg Aluminum Leg Utility Terrain Scanner Device Terrain Scanner Weapon Medium Laser Energy Gun Medium Laser Energy Cannon Heavy Particle Cannon Ballistic Gun Autogun Launcher Rocket Launcher Special Weapon Mining Laser Build | -11 -10 -9 -9 ------- Run | Yrd Mat Mat Min Slots Evolved 2 | . . 2 . Power . | . . . . Propulsion 1 | . . 1 . Utility . | . . . . Weapon 1 | . . 1 . Parts Attached 13 | 5 1 2 5 Power 3 | 1 . . 2 Engine 3 | 1 . . 2 Core . | . . . . Reactor . | . . . . Propulsion 2 | 2 . . . Treads . | . . . . Leg 2 | 2 . . . Wheel . | . . . . Hover . | . . . . Flight . | . . . . Utility 2 | . 1 1 . Device 2 | . 1 1 . Storage . | . . . . Processor . | . . . . Hackware . | . . . . Protection . | . . . . Artifact . | . . . . Weapon 6 | 2 . 1 3 Energy Gun 2 | 2 . . . Energy Cannon 1 | . . . 1 Ballistic Gun 1 | . . 1 . Ballistic Cannon . | . . . . Launcher 1 | . . . 1 Special Weapon 1 | . . . 1 Impact Weapon . | . . . . Slashing Weapon . | . . . . Piercing Weapon . | . . . . Special Melee Weapon . | . . . . Unidentified Prototypes . | . . . . Parts Lost 13 | . . . 13 Power 3 | . . . 3 Propulsion 2 | . . . 2 Utility 2 | . . . 2 Weapon 6 | . . . 6 Highest Loss Streak 6 | . . . 6 To Critical Strikes . | . . . . Average Backups 2 | . 1 1 3 Power . | . . . . Propulsion . | . . . . Utility . | . . . . Weapon 1 | . 1 1 2 Tool/Special . | . . . . Unused Backups 1 | . . . 1 Power . | . . . . Propulsion 1 | . . . 1 Utility . | . . . . Weapon . | . . . . Tool/Special . | . . . . Average Slot Usage (%) 73 | . 83 83 66 Engine 9 | . 14 11 6 Leg 16 | . 28 22 11 Device 17 | . 12 17 19 Energy Gun 14 | . 28 22 7 Energy Cannon 3 | . . . 6 Ballistic Gun 4 | . . 11 5 Launcher 3 | . . . 6 Special Weapon 2 | . . . 3 Peak Build Rating 14 | 5 6 11 14 Average Rating 8 | 3 5 9 9 On Entrance 5 | . 5 6 11 Avg Prop Armor Cover (%) . | . . . . Naked Turns 72 | . . . 72 Heaviest Build 17 | 9 10 13 17 Greatest Support 29 | 20 20 29 29 Greatest Overweight (x) 4 | . . . 4 Average Overweight (x) . | . . . . Largest Inventory Capacity 5 | 5 5 5 5 Average Capacity 5 | 5 5 5 5 Most Carried 4 | 3 2 3 4 Average Carried 2 | . 1 1 3 Final Capacity 5 | 5 5 5 5 Final Carried 3 | . 2 3 1 Class Distribution -------------------- 62% | Skirmisher 37% | Mutant Dominant Class ---------------- Mutant | -10/Materials Skirmisher | -9/Materials Skirmisher | -9/Mines Resources | -11 -10 -9 -9 ----------- Run | Yrd Mat Mat Min Matter Collected 499 | 219 41 48 191 Remotely . | . . . . Salvage Created 441 | . 147 70 224 Parts 32 | . 8 7 17 Haulers Intercepted . | . . . . Recyclers Shooed . | . . . . Parts Field Recycled . | . . . . Retrieved Matter . | . . . . Parts Self-Destructed . | . . . . Prevented . | . . . . Parts Restored . | . . . . Kills | -11 -10 -9 -9 ------- Run | Yrd Mat Mat Min Combat Hostiles Destroyed 23 | . 2 3 18 Guns 9 | . 1 3 5 Cannons 3 | . . . 3 AOE 10 | . . . 10 Classes Destroyed 7 | . 4 1 2 Worker 1 | . . . 1 Tunneler 1 | . 1 . . Operator 1 | . 1 . . Watcher 2 | . 1 1 . Swarmer 7 | . . 3 4 Grunt 4 | . 2 . 2 Assembled 12 | . . . 12 Best Kill Streak 13 | . 2 4 13 Combat Bots Only 12 | . 1 3 12 Max Kills in Single Turn 4 | . 2 2 4 Gunslinging 1 | . . 1 . Exploded 4 | . . . 4 Melee . | . . . . Uniques/NPCs Destroyed . | . . . . Combat | -11 -10 -9 -9 -------- Run | Yrd Mat Mat Min Hostile Shots Fired 163 | . 22 10 131 Missed 45 | . 7 3 35 Hits 118 | . 15 7 96 Melee 2 | . . . 2 Projectile 116 | . 15 7 94 Damage Taken 1297 | . 166 59 1072 Core 423 | . 20 20 383 Absorbed by Shields . | . . . . Core Remaining (%) 96 | 100 92 . . Volleys Fired 55 | . 21 7 27 Largest 3 | . 2 3 3 Hottest 131 | . 100 123 131 Shots Fired 122 | . 42 19 61 Gun 98 | . 42 19 37 Cannon 16 | . . . 16 Launcher 8 | . . . 8 Special . | . . . . Kinetic 24 | . . 7 17 Thermal 90 | . 42 12 36 Explosive 8 | . . . 8 Electromagnetic . | . . . . Robot Hit Streak 6 | . 5 2 6 Robot Miss Streak 8 | . 5 5 8 Penetration Max . | . . . . Secondary Targets 2 | . 1 1 . Max Gunslinging Chain 1 | . 1 1 . Shots Hit Robots 62 | . 25 7 30 Core Hits 50 | . 8 4 38 Critical Kills . | . . . . Critical Parts Destroyed . | . . . . Critical Strikes 5 | . 2 . 3 Burn 5 | . 2 . 3 Melee Attacks . | . . . . Impact . | . . . . Slashing . | . . . . Piercing . | . . . . Sneak Attacks . | . . . . Combat Hostiles . | . . . . Follow-up Attacks . | . . . . Damage Inflicted 1645 | . 353 96 1196 Guns 716 | . 353 96 267 Cannons 200 | . . . 200 Explosions 729 | . . . 729 Melee . | . . . . Ramming . | . . . . Kinetic 175 | . . 47 128 Thermal 741 | . 353 49 339 Explosive 729 | . . . 729 Electromagnetic . | . . . . Impact . | . . . . Slashing . | . . . . Piercing . | . . . . Highest Corruption . | . . . . Average Corruption . | . . . . Corruption Purged . | . . . . Corruption Blocked . | . . . . Overload Shots . | . . . . Overflow Damage 8 | . . . 8 Projectiles 8 | . . . 8 Explosions . | . . . . Melee . | . . . . Knockbacks . | . . . . Impact . | . . . . Kinetic . | . . . . Secondary . | . . . . Self-Inflicted Damage 29 | . . . 29 Shots 2 | . . . 2 Rammed . | . . . . Targets Rammed . | . . . . Kicked . | . . . . Crushed . | . . . . Highest Temperature 348 | . 348 141 335 Average Temperature 127 | . 153 54 122 Received Heat Transfer 188 | . 90 . 98 Effects 1 | . . . 1 Energy Bleed 1 | . . . 1 Siege Activations . | . . . . Martial Activations . | . . . . Shielding Activations . | . . . . Robots Disrupted . | . . . . Combat Hostiles . | . . . . Robots Corrupted . | . . . . Combat Hostiles . | . . . . Parts Fried . | . . . . Impact Corruptions . | . . . . Robots Melted 1 | . 1 . . Combat Hostiles 1 | . 1 . . Parts Melted 4 | . 3 . 1 Heat Transferred 2257 | . 1184 148 925 Parts Sabotaged . | . . . . Parts Stolen . | . . . . Parts Stripped . | . . . . Power Chain Reactions . | . . . . Alert | -11 -10 -9 -9 ------- Run | Yrd Mat Mat Min Maximum Alert Level . | . . . . Low Security (%) 100 | 100 100 100 100 Level 1 . | . . . . Level 2 . | . . . . Level 3 . | . . . . Level 4 . | . . . . Level 5 . | . . . . High Security . | . . . . Max Security . | . . . . Peak Influence 108 | . 22 68 108 Initial 18 | . . . 18 Average 17 | . 3 20 23 Influence Increases 392 | . 57 78 257 Destroy 0b10 Robot/C 220 | . 40 60 120 Destroy 0b10 Robot/NC 25 | . 15 5 5 Destroy Leader 34 | . 2 12 20 Disable Machine 30 | . . . 30 Destroy Structure 53 | . . 1 52 Lose Combat Pursuer 30 | . . . 30 Influence Decreases 362 | . 57 30 275 Entered New Map 30 | . . . 30 Time Decay 270 | . 57 30 183 Lost Part 62 | . . . 62 Squads Dispatched 1 | . . 1 . Investigation . | . . . . Extermination . | . . . . Reinforcement 1 | . . 1 . Assault . | . . . . Garrison . | . . . . Intercept . | . . . . Searches Triggered . | . . . . Construction Impeded . | . . . . Haulers Reinforced . | . . . . Active Scanning Responses . | . . . . Cargo Convoy Interrupts . | . . . . Stealth | -11 -10 -9 -9 --------- Run | Yrd Mat Mat Min Distress Signals . | . . . . Communications Jammed . | . . . . Distress Signals . | . . . . Times Spotted 42 | . 5 5 32 Peak Tracking Total 11 | . 2 3 11 Tactical Retreats 1 | . . . 1 Traps | -11 -10 -9 -9 ------- Run | Yrd Mat Mat Min Traps Triggered . | . . . . Indirectly . | . . . . Trap Hack Attempts . | . . . . Triggered . | . . . . Disarmed . | . . . . Reprogrammed . | . . . . Reused . | . . . . Traps Extracted . | . . . . Installed . | . . . . Triggered . | . . . . Machines | -11 -10 -9 -9 ---------- Run | Yrd Mat Mat Min Machines Disabled 2 | . . . 2 Max in Single Turn 1 | . . . 1 Machines Repaired . | . . . . Machines Dismantled . | . . . . Machines Sabotaged . | . . . . Overloaded Fab Kills . | . . . . Hacking | -11 -10 -9 -9 --------- Run | Yrd Mat Mat Min Machines Accessed . | . . . . Terminals . | . . . . Fabricators . | . . . . Repair Stations . | . . . . Recycling Units . | . . . . Scanalyzers . | . . . . Garrison Access . | . . . . Total Hacks . | . . . . Successful . | . . . . Failed . | . . . . Catastrophic . | . . . . Database Lockouts . | . . . . Manual . | . . . . Terminals . | . . . . Fabricators . | . . . . Repair Stations . | . . . . Recycling Units . | . . . . Scanalyzers . | . . . . Garrison Access . | . . . . Terminal Hacks . | . . . . Fabricator Hacks . | . . . . Repair Station Hacks . | . . . . Recycling Unit Hacks . | . . . . Scanalyzer . | . . . . Garrison Access Hacks . | . . . . Unauthorized Hacks . | . . . . Terminals . | . . . . Fabricators . | . . . . Repair Stations . | . . . . Recycling Units . | . . . . Scanalyzers . | . . . . Garrison Access . | . . . . Data Cores Recovered 1 | . 1 . . Used . | . . . . Hacking Detections . | . . . . Full Trace Events . | . . . . Feedback Events . | . . . . Feedback Blocked . | . . . . Robot Schematics Acquired . | . . . . Robots Built . | . . . . Authchips . | . . . . Time . | . . . . Total Robot Build Rating . | . . . . Part Schematics Acquired . | . . . . Parts Built . | . . . . Authchips . | . . . . Time . | . . . . Total Part Build Rating . | . . . . Part Studies Acquired . | . . . . Parts Repaired . | . . . . Time . | . . . . Parts Recycled . | . . . . Recycled Matter . | . . . . Retrieved Matter . | . . . . Retrieved Components . | . . . . Parts Scanalyzed . | . . . . Part Schematics Acquired . | . . . . Parts Damaged . | . . . . Bothacking | -11 -10 -9 -9 ------------ Run | Yrd Mat Mat Min Used RIF Installer . | . . . . Robots Hacked . | . . . . Non-combat . | . . . . Combat . | . . . . Robot Hacks Applied . | . . . . Relay Couplers Released . | . . . . Fabnet Peak Effective % . | . . . . Robots Rewired . | . . . . Allies Hacked . | . . . . Hacks Repelled . | . . . . Allies | -11 -10 -9 -9 -------- Run | Yrd Mat Mat Min Total Allies . | . . . . Largest Group . | . . . . Highest-Rated Group . | . . . . Highest-Rated Ally . | . . . . Total Orders . | . . . . Ally Attacks . | . . . . Total Damage . | . . . . Kills . | . . . . Allies Corrupted . | . . . . Allies Melted . | . . . . Intel | -11 -10 -9 -9 ------- Run | Yrd Mat Mat Min Active Infowar (turns) 1030 | . 257 150 623 Terrain 1030 | . 257 150 623 Robot Analysis Total . | . . . . Derelict Logs Recovered 2 | . . . 2 Drone Launches . | . . . . Drone Recoveries . | . . . . Exploration | -11 -10 -9 -9 ------------- Run | Yrd Mat Mat Min Turns Passed 1198 | 54 280 150 714 Spaces Moved 828 | 38 178 105 507 Core 260 | 6 . . 254 Treads . | . . . . Legs 568 | 32 178 105 253 Wheels . | . . . . Hover . | . . . . Flight . | . . . . Fastest Speed 50 | 50 120 120 50 Average Speed 121 | 108 120 120 123 Slowest Speed 250 | 120 120 120 250 Overloaded Moves . | . . . . Propulsion Burnouts . | . . . . Robots Hopped . | . . . . Potential Cave-ins . | . . . . Cave-ins Triggered . | . . . . Exploration Rate (%) 30 | 3 32 13 73 Regions Visited 3 Branch Regions 1 Pre-discovered Areas 1 | . . . 1 Known Exits Taken . | . . . . Unknown Exits Taken 3 | 1 1 1 . Scrap Searched 2 | . . . 2 Spaces Dug . | . . . . Terrain Destroyed 103 | . . . 103 Melee . | . . . . Projectile 7 | . . . 7 AOE 96 | . . . 96 Terrain Rammed . | . . . . Walls Destroyed . | . . . . Machines Disabled . | . . . . Actions | -11 -10 -9 -9 --------- Run | Yrd Mat Mat Min Total 913 | 50 202 116 545 Wait 3 | 3 . . . Move 825 | 37 177 104 507 Hop . | . . . . Pick Up 14 | 5 3 3 3 Fast Attach . | . . . . Attach 13 | 5 1 2 5 Detach . | . . . . Swap 3 | . . . 3 Drop . | . . . . Fire 55 | . 21 7 27 Melee . | . . . . Ram . | . . . . Kick . | . . . . Crush . | . . . . Escape Stasis . | . . . . Rewire . | . . . . Trap . | . . . . Miscellaneous . | . . . . Route ------- -11/Scrapyard -10/Materials -9/Materials -9/Mines History --------- Turn | Location | Event 8 | -11/Scrapyard | Discovered new exit (range 15) 55 | -11/Scrapyard | Entered Materials 301 | -10/Materials | Discovered new exit (range 12) 308 | -10/Materials | Build established: Mutant 335 | -10/Materials | Entered another Materials area 335 | -9/Materials | Evolved 2 slots: Propulsion x1, Weapon x1 463 | -9/Materials | Discovered new exit (range 12) 485 | -9/Materials | Entered Mines 487 | -9/Mines | Met a Derelict bent on vengeance 614 | -9/Mines | Learned location of Recycling (-9) 627 | -9/Mines | Build established: Skirmisher 805 | -9/Mines | Assembled infested the area 879 | -9/Mines | Destroyed 12 combat bots 883 | -9/Mines | Lost 4 parts (1p2n1w) 1120 | -9/Mines | Core integrity fell below 50% 1151 | -9/Mines | Lost 6 parts (1p2u3w) 1161 | -9/Mines | Core integrity fell below 20% 1199 | -9/Mines | Destroyed by S-10 Pest with Light Assault Rifle Last Messages --------------- 00936_ U-05 Engineer lays Concrete. 00936_ K-01 Serf collects debris. 00937_ U-05 Engineer lays Concrete. 00938_ The unstable cave ceiling collapses. 00939_ U-05 Engineer lays Concrete. 00941_ U-05 Engineer builds a Wall. 00941_ K-01 Serf collects debris. 00945_ U-05 Engineer lays Concrete. 01108_ Terrain Scanner destroyed. 01112_ Rocket Launcher destroyed. 01112_ Mining Laser destroyed. 01113_ Laser Drill disabled. 01118_ Adv. Weight Redist. System destroyed. 01118_ Destroyed Flight Unit. 01120_ Lgt. Ion Engine destroyed. 01120_ Hvy. Particle Cannon destroyed. 01150_ S-10 Pest destroyed. 01159_ Med. Laser destroyed. 01174_ Acquired 10 matter. 01176_ S-10 Pest destroyed. Map ----- +----------------------------------------------------+ | ?????????#? ??????????? ?????????????????? | | ???######?????????????????????????????????? | | ??##" ##?#??#????#??????#????????????????? | | ??# ##???#?????##?#?#??????????#? ????? | | ??# #????#???#??????##????????????????? | | ???# ####??#?????#??# #????#???????????? | | ???# #????#????## ##?????????????#?? | | ???## ##?####?### #????????????????? | | ???# # ### #### ##???????????????? | | ??## # # # ] #?????????????#??? | | ??# #% ! #??????#???#?????? | | ??# ## %% ! #??????????#?????? | | ??## ###?#?????????##### | | ???## # #### ##?????????????? # | | ????### # # ####???##???????????# # | | ?????### ### # ### #???????????????????# | | ???????######## # # #???????????????????### | | ?????????# #####???##???????#????? | | ???????#?# ######## ###?????#?????????? | | ???#??????????????# #?#??##??????????? | | ???????#? #???????### #??##?????????#??? | | ??????????##???##?### ##??????????#?????? | | ??????????????????## ##?#????????#??????? | | ???????????????#### ##?#????????????????? | | ???????#??????## ######?????####??????? | | ??????????????# !@ #??#?## ##?????? | | ?????????????## !%! s #??### #?#???? | | ??????????????# ### #?## #?????? | | ?????????????## ##?# ### ##?????? | | ?????????????# ####?# ## ###??????? | | ????????????# ##????# ## ####????????? | | ???????????# ???#??# # ##????????#?## | | ???????????# ??????# ##????#????## | | ???????????## ?????## ##?????#### | | ????????????## ? ??#??##### ##???## | | ?????????????# ?? ?????#??## ##### | | ????????????? ???????????## | | ????????????? ???????????# | | ?????????????#?????????#??# ####### | | ??????##?###????????????#?# ##???## | | ?????? ?????#????#???## ###??## | | ??#???""" ???????????#### ##??## | | ??????""" ??????#??## ##??### | | ??????" " ??????????# ##????# | | ??????? ???????????# #????? | | ??????? ??#????????## #????# | | ??????? ? #??????##?## #???## | | ?????? #????#?????# #???# | | ??????## #"#???????????# ###?# | | ??????#" "####????##???# ##?## | +----------------------------------------------------+ Best States ------------- Heat Dissipation 28 Energy Generation 10 Energy Capacity 250 Matter Stores 300 Matter Capacity 300 Sight Range 16 Terrain Scan Range 14 Terrain Scan Density 10 Additional Mass Support 9 Evasion (%) 55 Item Schematics ----------------- None Robot Schematics ------------------ None Fabricated ------------ Nothing Repaired ---------- Nothing Studied --------- None Alien Tech Used ----------------- None Achievements -------------- Ghost 'Em Challenges ------------ None Game ------ Seed DeflectorPointyTerminator Manual? 0 Play Time 00:09:52 Cumulative 4.3 hours Start 2026.09.12 @ 21:23:25 End 2026.09.12 @ 21:32:25 Sessions 1 Manual Loads 0 Difficulty Rogue Special Mode None Game No. 11 Rogue 11 Adventurer 0 Explorer 0 Win Type - Total 0 Types 0/0/0/0/0/0/0/0/0/0 Lore% 5 Gallery% 11 Achievement% 9 Wizard Run 0 Options --------- Layout 1 ASCII 0 Keyboard 0 Movement Mouse Keybinds 0 Fullscreen 2 Font 32/SmallcapsGlow Map View 50x35 Zoom Use 0% Tactical HUD 1 Map Filters NONE Filters NONE Steam 1 RUN: 44136d68-dc59-4d8b-a48f-45371dad47e3